lending/lending_fUSD_20250418
["ID","MTS","AMOUNT","RATE_DAILY","PERIOD"]
[358332732,1744941040897,-1521.686,0.00078454,120]
[358332733,1744941040907,-282.438,0.00078454,120]
[358332734,1744941040918,-1000.0,0.00078759,120]
[358332735,1744941040928,-2651.3912846,0.000789,120]
[358332736,1744941040938,-500.0,0.00079113,15]
[358332737,1744941040948,-501.87414195,0.00079113,5]
[358332738,1744941040958,-500.0,0.00079113,15]
[358332739,1744941040967,-500.0,0.00079113,15]
[358332740,1744941040976,-220.0,0.00079341,15]
[358332741,1744941040986,-264.38,0.00079452,120]
[358332742,1744941040998,-221.56,0.00080347,2]
[358332743,1744941041007,-151.0,0.00080521,120]
[358332744,1744941041016,-168.08,0.00080532,120]
[358332745,1744941041025,-264.38,0.00080821,120]
[358332746,1744941041034,-1726.0344484,0.0008087,120]
[358332747,1744941041043,-1000.0,0.0008097,120]
[358332748,1744941041052,-1510.18253269,0.00081718,15]
[358332749,1744941041062,-230.0,0.0008208,15]
[358332750,1744941041071,-264.38,0.00082191,120]
[358332751,1744941041080,-488.14,0.00082405,120]
[358332752,1744941041090,-800.0,0.00082499,120]
[358332753,1744941041099,-500.0,0.0008309,120]
[358332754,1744941041108,-513.94340594,0.00083352,60]
[358332755,1744941041118,-1002.83815348,0.00083452,14]
[358332756,1744941041128,-264.38,0.00083561,120]
[358332757,1744941041137,-1002.38997492,0.00084593,60]
[358332758,1744941041147,-1000.0,0.00084593,60]
[358332759,1744941041157,-1002.79118924,0.00084593,60]
[358332760,1744941041167,-240.0,0.0008482,30]
[358332761,1744941041176,-264.38,0.00084931,120]
[358332762,1744941041186,-1000.0,0.00085919,120]
[358332763,1744941041196,-264.4452664,0.00086301,120]
[358332764,1744941041206,-488.14,0.00087295,120]
[358332765,1744941041216,-393.50908769,0.0008756,30]
[358332766,1744941041225,-329.0,0.00090027,120]
[358332767,1744941041236,-9153.47586845,0.00090256,15]
[358332768,1744941041247,-800.0,0.00090598,120]
[358332769,1744941041257,-488.14,0.00092186,120]
[358332770,1744941041266,-500.0,0.00092712,2]
[358332771,1744941041275,-500.0,0.0009326,2]
[358332772,1744941041285,-1521.686,0.00094227,120]
[358332773,1744941041294,-282.437,0.00094227,120]
[358332774,1744941041303,-623.44890813,0.00094612,60]
[358332775,1744941041313,-900.0,0.00094924,120]
[358332776,1744941041323,-800.0,0.00095443,120]
[358332777,1744941041332,-178.041811,0.00096198,120]
[358332778,1744941041341,-171.041811,0.00096498,120]
[358332779,1744941041351,-1000.0,0.000967,21]
[358332780,1744941041360,-166.37,0.00096751,120]
[358332781,1744941041370,-488.14,0.00097076,120]
[358332782,1744941041379,-181.041811,0.00097198,120]
[358332783,1744941041388,-181.041811,0.00097498,120]
[358332784,1744941041398,-3400.78129994,0.000975,120]
[358332785,1744941041407,-264.64675648,0.000975,120]
[358332786,1744941041417,-247.04215441,0.000981,28]
[358332787,1744941041427,-1800.0,0.000989,120]
[358332788,1744941041438,-2228.50349596,0.00099989,120]
[358332789,1744941041448,-3105.9738296,0.0009999,5]
[358332790,1744941041458,-515.12284104,0.001,120]
[358332791,1744941041467,-386.74,0.001,120]
[358332792,1744941041477,-281.14516081,0.001,120]
[358332793,1744941041487,-155.0,0.001,120]
[358332794,1744941041497,-151.0,0.001,120]
[358332795,1744941041508,-151.0,0.001,120]
[358332796,1744941041519,-488.14,0.00101967,120]
[358332797,1744941041530,-151.0,0.00102097,101]
[358332798,1744941041541,-150.0,0.001023,2]
[358332799,1744941041556,-9153.47586845,0.00102711,15]
[358332800,1744941041567,-500.0,0.00105652,120]
[358332801,1744941041578,-500.0,0.00106151,120]
[358332802,1744941041589,-488.14,0.00106857,120]
[358332803,1744941041600,-292.11,0.001074,7]
[358332804,1744941041611,-500.0,0.00109589,120]
[358332805,1744941041620,-2368.0,0.0011,120]
[358332806,1744941041631,-2368.0,0.0011,120]
[358332807,1744941041643,-2368.0,0.0011,120]
[358332808,1744941041654,-1521.686,0.0011,120]
[358332809,1744941041664,-282.438,0.0011,120]
[358332810,1744941041674,-2368.0,0.00111,120]
[358332811,1744941041683,-2368.0,0.00111,120]
[358332812,1744941041694,-2368.0,0.00111,120]
[358332813,1744941041703,-2368.0,0.00111,120]
[358332814,1744941041713,-488.14,0.00111747,120]
[358332815,1744941041723,-2368.0,0.00112,120]
[358332816,1744941041735,-2368.0,0.00112,120]
[358332817,1744941041745,-2368.0,0.00112,120]
[358332818,1744941041755,-2368.0,0.00112,120]
[358332819,1744941041765,-2368.0,0.00112,120]
[358332820,1744941041776,-2368.0,0.00112,120]
[358332821,1744941041786,-2368.0,0.00113,120]
[358332822,1744941041799,-2368.0,0.00113,120]
[358332823,1744941041808,-2368.0,0.00113,120]
[358332824,1744941041818,-2368.0,0.00113,120]
[358332825,1744941041828,-2368.0,0.00113,120]
[358332826,1744941041842,-2368.0,0.00113,120]
[358332827,1744941041851,-2368.0,0.00113,120]
[358332828,1744941041861,-2368.0,0.00113,120]
[358332829,1744941041871,-2368.0,0.00113,120]
[358332830,1744941041880,-500.0,0.00113014,120]
[358332831,1744941041889,-892.09958953,0.0011399,9]
[358332832,1744941041899,-2368.0,0.00114,120]
[358332833,1744941041908,-2368.0,0.00114,120]
[358332834,1744941041921,-2368.0,0.00114,120]
[358332835,1744941041931,-2368.0,0.00114,120]
[358332836,1744941041941,-2368.0,0.00114,120]
[358332837,1744941041950,-2368.0,0.00114,120]
[358332838,1744941041960,-2368.0,0.00114,120]
[358332839,1744941041974,-2368.0,0.00114,120]
[358332840,1744941041989,-2368.0,0.00114,120]
[358332841,1744941042004,-2368.0,0.00114,120]
[358332842,1744941042016,-892.09958953,0.0011499,9]
[358332843,1744941042027,-2368.0,0.00115,120]
[358332844,1744941042040,-2368.0,0.00115,120]
[358332845,1744941042058,-2368.0,0.00115,120]
[358332846,1744941042071,-2368.0,0.00115,120]
[358332847,1744941042086,-2368.0,0.00115,120]
[358332848,1744941042101,-9153.47586845,0.00115167,15]
[358332849,1744941042115,-166.37,0.00115472,120]
[358332850,1744941042127,-2368.0,0.00116,120]
[358332851,1744941042139,-2368.0,0.00116,120]
[358332852,1744941042151,-2368.0,0.00116,120]
[358332853,1744941042165,-2368.0,0.00116,120]
[358332854,1744941042179,-2368.0,0.00116,120]
[358332855,1744941042192,-2368.0,0.00116,120]
[358332856,1744941042206,-2368.0,0.00116,120]
[358332857,1744941042219,-500.0,0.00116438,120]
[358332858,1744941042232,-900.0,0.00116465,120]
[358332859,1744941042244,-488.14,0.00116638,120]
[358332860,1744941042258,-892.09958953,0.0011699,10]
[358332861,1744941042270,-2368.0,0.00117,120]
[358332862,1744941042283,-2368.0,0.00117,120]
[358332863,1744941042298,-2368.0,0.00117,120]
[358332864,1744941042309,-2368.0,0.00117,120]
[358332865,1744941042322,-2368.0,0.00117,120]
[358332866,1744941042334,-2368.0,0.00117,120]
[358332867,1744941042349,-2368.0,0.00117,120]
[358332868,1744941042362,-2368.0,0.00118,120]
[358332869,1744941042374,-2368.0,0.00118,120]
[358332870,1744941042387,-2368.0,0.00118,120]
[358332871,1744941042398,-2368.0,0.00118,120]
[358332872,1744941042409,-243.42,0.001183,14]
[358332873,1744941042420,-247.04215441,0.001184,28]
[358332874,1744941042432,-500.0,0.001188,30]
[358332875,1744941042447,-500.0,0.001188,60]
[358332876,1744941042460,-2368.0,0.00119,120]
[358332877,1744941042472,-2368.0,0.00119,120]
[358332878,1744941042483,-500.0,0.001197,43]
[358332879,1744941042494,-1100.0,0.001198,43]
[358332880,1744941042507,-500.0,0.00119863,120]
[358332881,1744941042520,-2213.0,0.00119899,120]
[358332882,1744941042533,-1700.0,0.001199,43]
[358332883,1744941042547,-13381.493843,0.0011999,11]
[358332884,1744941042559,-487.14147694,0.0011999,30]
[358332885,1744941042569,-234.7530884,0.0012,120]
[358332886,1744941042581,-2411.779196,0.0012,120]
[358332887,1744941042592,-2180.0,0.0012,120]
[358332888,1744941042604,-1830.0,0.0012,120]
[358332889,1744941042615,-2000.0,0.0012,120]
[358332890,1744941042627,-1811.489438,0.0012,120]
[358332891,1744941042639,-141119.41095502,0.0012,120]
[358332892,1744941042657,-340569.66230341,0.0012,120]
[358332893,1744941042671,-2141.5077346,0.0012,120]
[358332894,1744941042695,-9061.49703077,0.0012,120]
[358332895,1744941042733,-2793.02318066,0.0012,120]
[358332896,1744941042752,-1600.65,0.0012,120]
[358332897,1744941042767,-717.10633169,0.0012,120]
[358332898,1744941042781,-301.92197159,0.0012,120]
[358332907,1744941042865,-13129.61200854,0.0012,120]
[358332908,1744941042879,-464968.15041335,0.0012,120]
[358332909,1744941042893,-6105.49560858,0.0012,120]
[358332910,1744941042907,-803.24021193,0.0012,120]
[358332911,1744941042920,-132877.48440982,0.0012,120]
[358332912,1744941042934,-25819.26104217,0.0012,120]
[358332913,1744941042948,-3350.67777773,0.0012,120]
[358332914,1744941043101,-18917.64810557,0.0012,120]
[358332915,1744941043114,-8665.65283208,0.0012,120]
[358332916,1744941043128,-4176.05,0.0012,120]
[358332917,1744941043176,-109.98375506,0.0012,120]
[358332918,1744941044004,-668.53109183,0.0012,120]
[358332919,1744941044024,-1741.16837425,0.0012,120]
[358332920,1744941044036,-2429.625,0.0012,120]
[358332921,1744941044048,-1772.16665824,0.0012,120]
[358332922,1744941045930,-3281.0519054,0.0012,120]
[358332923,1744941046149,-1609.41349508,0.0012,120]
[358332924,1744941046161,-502.29225712,0.0012,120]
[358332942,1744941310220,250.0,0.00017,2]
[358332943,1744941311293,300.0,0.00019,2]
[358332944,1744941363396,-506.25661391,0.0002,2]
[358332953,1744941946126,-191.90290609,0.0002,2]
[358332954,1744941946146,-252.96521587,0.000307,2]
[358332957,1744942035226,-760.03478413,0.000307,2]
[358332958,1744942035248,-168.11,0.00038131,30]
[358332959,1744942035268,-120.64913544,0.00043668,2]
[358332960,1744942039012,-904.53467025,0.00043668,2]
[358332961,1744942039129,-257.21440065,0.00043668,2]
[358332962,1744942044138,-1905.84455966,0.00043668,2]
[358332963,1744942044162,-1405.29737808,0.00043788,2]
[358332964,1744942044187,-925.0295,0.00043888,30]
[358332965,1744942044208,-151.0,0.00045,120]
[358332966,1744942044233,-151.0,0.00045,120]
[358332967,1744942044254,-185.93522903,0.00045899,2]
[358332968,1744942044275,-238.6192,0.000459,2]
[358332969,1744942044295,-178.92420507,0.00045999,7]
[358332970,1744942044315,-169.462,0.00045999,75]
[358332971,1744942044336,-1111.95,0.00045999,75]
[358332972,1744942044362,-493.0,0.00045999,5]
[358332973,1744942044383,-370.0,0.00045999,4]
[358332974,1744942044404,-4325.58350263,0.00046,25]
[358332975,1744942051097,-1097.10075092,0.00046,25]
[358332976,1744942166194,-200.0,0.00045999,60]
[358332977,1744942166218,-393.71947047,0.00046,25]
[358332980,1744942231947,-711.05050049,0.00046,25]
[358332981,1744942232001,-424.91916695,0.00046,25]
[358332982,1744942232057,-27983.01354288,0.00046,25]
[358332983,1744942232069,-12505.18626023,0.00046,25]
[358332984,1744942232080,-1865.45817321,0.00046,25]
[358332985,1744942232163,-693.96863222,0.00046,25]
[358332986,1744942232173,-223.05717577,0.00046,30]
[358332987,1744942232184,-841.63292562,0.00046,30]
[358332988,1744942232194,-500.0,0.00046973,10]
[358332989,1744942232204,-10084.75433081,0.00047,26]
[358333015,1744942238103,-1520.0,0.00047,26]
[358333016,1744942238263,-3476.6,0.00047,26]
[358333017,1744942238275,-25565.289833,0.00047,26]
[358333018,1744942238287,-2696.00000011,0.00047,26]
[358333019,1744942238298,-448.13726371,0.00047,26]
[358333020,1744942238318,-6209.21857237,0.00047,26]
[358333021,1744942238328,-1790.18,0.00047,2]
[358333022,1744942238340,-150.99,0.00047,30]
[358333023,1744942238350,-5313.0,0.00052023,30]
[358333024,1744942238370,-154.94551393,0.00052023,2]
[358333025,1744942238380,-306.05497513,0.00052023,2]
[358333026,1744942238390,-490.05,0.00052039,10]
[358333027,1744942238399,-150.99,0.00052039,2]
[358333028,1744942238409,-321.1,0.00052039,2]
[358333029,1744942238418,-546.22,0.00052039,2]
[358333030,1744942238428,-8721.19,0.00052039,2]
[358333031,1744942238438,-1010.18253269,0.00052452,10]
[358333032,1744942238448,-713.90990646,0.00054,120]
[358333033,1744942238458,-1449.4134,0.000551,30]
[358333034,1744942238467,-196.7,0.000552,54]
[358333035,1744942238476,-196.7,0.000552,54]
[358333037,1744942238486,-196.7,0.000552,54]
[358333039,1744942238496,-196.7,0.000552,54]
[358333040,1744942238506,-196.7,0.000552,54]
[358333041,1744942238515,-196.7,0.000552,54]
[358333042,1744942238525,-196.7,0.000552,54]
[358333043,1744942238535,-196.7,0.000552,54]
[358333044,1744942238545,-196.7,0.000552,54]
[358333045,1744942238554,-196.7,0.000552,54]
[358333046,1744942238563,-196.7,0.000552,54]
[358333047,1744942238573,-196.7,0.000552,54]
[358333048,1744942238583,-700.0,0.00056,120]
[358333049,1744942238592,-250.0,0.00056444,2]
[358333050,1744942238603,-600.0,0.00058,120]
[358333051,1744942238612,-250.0,0.00059075,2]
[358333052,1744942238622,-500.0,0.00061,120]
[358333053,1744942238631,-1111.95,0.00061999,120]
[358333054,1744942238641,-169.463,0.00061999,120]
[358333055,1744942238651,-400.0,0.00064,120]
[358333056,1744942238661,-300.0,0.00067,120]
[358333057,1744942238671,-355.47,0.00067088,30]
[358333058,1744942238681,-2000.0,0.00067578,120]
[358333059,1744942238691,-524.41314612,0.00068493,120]
[358333062,1744942238701,-800.0,0.00069297,120]
[358333063,1744942238711,-732.0,0.0007,120]
[358333064,1744942238720,-300.0,0.0007,5]
[358333066,1744942238730,-170.0,0.0007,120]
[358333067,1744942238740,-502.0,0.00072329,2]
[358333068,1744942238750,-23900.0,0.00074861,2]
[358333069,1744942238760,-170.0,0.00075,120]
[358333070,1744942238769,-500.0,0.00076937,120]
[358333071,1744942238779,-169.463,0.00078,120]
[358333072,1744942238789,-1111.951,0.00078,120]
[358333073,1744942238798,-653.32204492,0.000789,120]
[358333074,1744942238825,-1998.06923968,0.000789,120]
[358333075,1744942238835,-500.0,0.00079437,120]
[358333076,1744942238844,-170.0,0.0008,120]
[358333077,1744942238854,-1726.0344484,0.0008097,120]
[358333078,1744942238864,-10579.46679183,0.00081317,15]
[358333079,1744942238874,-500.0,0.00081417,120]
[358333080,1744942238884,-150.0,0.00082529,30]
[358333081,1744942238894,-157.041811,0.00083198,120]
[358333082,1744942238904,-166.37,0.00083413,120]
[358333083,1744942238914,-292.88,0.00083618,120]
[358333084,1744942238924,-1000.0,0.00083907,120]
[358333085,1744942238934,-800.0,0.00084155,120]
[358333086,1744942238944,-170.0,0.00085,120]
[358333087,1744942238954,-157.041811,0.00086198,120]
[358333088,1744942238964,-292.88,0.00088508,120]
[358333089,1744942238974,-151.1,0.00088688,2]
[358333090,1744942238984,-157.041811,0.00089198,120]
[358333091,1744942238995,-1658.24,0.00089979,2]
[358333092,1744942239005,-170.0,0.0009,120]
[358333093,1744942239015,-180.2,0.00091368,30]
[358333094,1744942239025,-200.0,0.00091543,30]
[358333095,1744942239035,-151.1,0.00091556,2]
[358333096,1744942239045,-12017.0534,0.00092,120]
[358333097,1744942239055,-1915.0,0.000921,120]
[358333098,1744942239064,-155.041811,0.00093198,120]
[358333099,1744942239074,-10579.46679183,0.00093382,15]
[358333100,1744942239085,-292.88,0.00093399,120]
[358333101,1744942239095,-355.47,0.00093923,30]
[358333102,1744942239106,-169.462,0.00094,120]
[358333103,1744942239116,-1111.95,0.00094,120]
[358333104,1744942239126,-1000.0,0.00094395,120]
[358333105,1744942239136,-151.1,0.00094423,2]
[358333106,1744942239146,-1915.39960846,0.000948,120]
[358333107,1744942239157,-170.0,0.00095,120]
[358333108,1744942239167,-157.041811,0.00096198,120]
[358333109,1744942239177,-800.0,0.0009688,120]
[358333110,1744942239188,-151.1,0.00097291,2]
[358333111,1744942239198,-3395.42682067,0.000975,120]
[358333112,1744942239208,-1276.4210023,0.000977,80]
[358333113,1744942239218,-1831.0,0.000978,120]
[358333114,1744942239228,-292.88,0.00098289,120]
[358333115,1744942239237,-1799.99999905,0.000989,120]
[358333116,1744942239247,-151.041811,0.00099198,120]
[358333117,1744942239257,-10000.0,0.001,120]
[358333118,1744942239271,-500.0,0.001,2]
[358333119,1744942239281,-170.0,0.001,120]
[358333120,1744942239290,-2046.242527,0.001,120]
[358333121,1744942239300,-500.0,0.001,120]
[358333122,1744942239311,-151.1,0.00100158,2]
[358333123,1744942239321,-10000.0,0.00101,120]
[358333124,1744942239330,-10000.0,0.00102,120]
[358333125,1744942239342,-150.0,0.001023,2]
[358333126,1744942239352,-10000.0,0.00103,120]
[358333127,1744942239362,-151.1,0.00103026,2]
[358333128,1744942239372,-292.88,0.0010318,120]
[358333129,1744942239382,-10000.0,0.00104,120]
[358333130,1744942239392,-1000.0,0.00104884,120]
[358333131,1744942239402,-10000.0,0.00105,120]
[358333132,1744942239412,-10579.46679183,0.00105447,15]
[358333133,1744942239422,-151.1,0.00105894,2]
[358333134,1744942239432,-10000.0,0.00106,120]
[358333135,1744942239442,-10000.0,0.00107,120]
[358333136,1744942239452,-292.11,0.001074,7]
[358333137,1744942239461,-181.71527433,0.00107999,120]
[358333138,1744942239471,-688.92202448,0.00107999,120]
[358333139,1744942239481,-150.81993876,0.00107999,120]
[358333140,1744942239490,-221.57615382,0.00107999,120]
[358333141,1744942239501,-688.92202448,0.00107999,120]
[358333142,1744942239511,-500.0,0.00107999,120]
[358333143,1744942239521,-688.92202448,0.00107999,120]
[358333144,1744942239531,-199.81598231,0.00107999,120]
[358333145,1744942239541,-688.92202448,0.00107999,120]
[358333146,1744942239551,-688.92202448,0.00107999,120]
[358333147,1744942239562,-688.92202448,0.00107999,120]
[358333148,1744942239572,-500.0,0.00107999,120]
[358333149,1744942239582,-688.92202448,0.00107999,120]
[358333150,1744942239592,-624.63116205,0.00107999,120]
[358333151,1744942239601,-688.92202448,0.00107999,120]
[358333152,1744942239611,-688.92202448,0.00107999,120]
[358333153,1744942239621,-688.92202448,0.00107999,120]
[358333154,1744942239630,-688.92202448,0.00107999,120]
[358333155,1744942239640,-688.92202448,0.00107999,120]
[358333156,1744942239650,-688.92202448,0.00107999,120]
[358333157,1744942239660,-688.92202448,0.00107999,120]
[358333158,1744942239669,-688.92202448,0.00107999,120]
[358333159,1744942239679,-688.92202448,0.00107999,120]
[358333160,1744942239689,-10000.0,0.00108,120]
[358333161,1744942239698,-292.88,0.0010807,120]
[358333162,1744942239708,-216.16188517,0.00108661,28]
[358333163,1744942239719,-151.1,0.00108761,2]
[358333164,1744942239728,-10000.0,0.00109,120]
[358333165,1744942239738,-2228.50349496,0.0010989,120]
[358333166,1744942239747,-169.463,0.0011,120]
[358333167,1744942239757,-1111.95,0.0011,120]
[358333168,1744942239767,-10000.0,0.0011,120]
[358333169,1744942239776,-10000.0,0.00111,120]
[358333170,1744942239786,-166.37,0.00111496,120]
[358333171,1744942239796,-151.1,0.00111629,2]
[358333172,1744942239806,-191.01,0.00111727,120]
[358333173,1744942239992,-500.0,0.00111759,120]
[358333174,1744942240002,-10000.0,0.00112,120]
[358333175,1744942240013,-500.0,0.00112033,120]
[358333176,1744942240023,-513.94340594,0.00112154,60]
[358333177,1744942240033,-500.0,0.00112307,120]
[358333178,1744942240043,-500.0,0.00112581,120]
[358333179,1744942240053,-8277.93144452,0.00112786,15]
[358333180,1744942240063,-500.0,0.00112855,120]
[358333181,1744942240072,-500.0,0.00112886,120]
[358333182,1744942240081,-292.88,0.0011296,120]
[358333183,1744942240091,-6600.0,0.00113,120]
[358333184,1744942240099,-15156.66871958,0.00113,120]
[358333185,1744942240108,-500.0,0.00113129,120]
[358333186,1744942240118,-500.0,0.00113403,120]
[358333187,1744942240128,-95007.0,0.00113588,120]
[358333188,1744942240138,-500.0,0.00113677,120]
[358333189,1744942240147,-214.1626,0.00113688,120]
[358333190,1744942240156,-10139.0044,0.00113688,120]
[358333191,1744942240165,-109999.8507491,0.001137,120]
[358333192,1744942240174,-764.1461,0.001139,30]
[358333193,1744942240183,-500.0,0.00113951,120]
[358333194,1744942240193,-500.0,0.00114225,120]
[358333195,1744942240202,-151.1,0.00114496,2]
[358333196,1744942240212,-572.23,0.00114499,120]
[358333197,1744942240221,-1005.0,0.00115,30]
[358333198,1744942240230,-1000.0,0.00115372,120]
[358333199,1744942240239,-500.0,0.00116852,30]
[358333200,1744942240248,-500.0,0.00117,120]
[358333201,1744942240257,-500.0,0.00117323,60]
[358333202,1744942240271,-500.0,0.00117323,14]
[358333203,1744942240282,-151.1,0.00117364,2]
[358333204,1744942240291,-8973.33631146,0.00117511,15]
[358333205,1744942240303,-1606.13048037,0.00117511,15]
[358333206,1744942240314,-243.42,0.001177,14]
[358333207,1744942240323,-292.88,0.00117851,120]
[358333208,1744942240332,-900.0,0.0011816,120]
[358333209,1744942240342,-152.69658,0.001188,120]
[358333210,1744942240352,-2213.0,0.00118987,120]
[358333211,1744942240362,-150.88129851,0.001194,120]
[358333212,1744942240371,-55311.14060767,0.00119547,120]
[358333213,1744942240380,-500.0,0.001198,43]
[358333214,1744942240389,-5000.0,0.001199,120]
[358333215,1744942240399,-151.56608145,0.001199,115]
[358333216,1744942240408,-1100.0,0.001199,43]
[358333217,1744942240417,-1000.0,0.0011997,120]
[358333218,1744942240426,-892.09958953,0.0011998,11]
[358333219,1744942240435,-12489.3942534,0.0011999,11]
[358333220,1744942240445,-487.14147694,0.0011999,30]
[358333221,1744942240454,-194.52359327,0.0012,120]
[358333222,1744942240463,-962.76263784,0.0012,120]
[358333223,1744942240473,-1485.3253,0.0012,120]
[358333224,1744942240482,-255436.70040443,0.0012,120]
[358333225,1744942240493,-476.4337674,0.0012,120]
[358333226,1744942240509,-343.17502205,0.0012,120]
[358333227,1744942240522,-661.21728265,0.0012,120]
[358333228,1744942240533,-735.0921918,0.0012,120]
[358333229,1744942240653,-581.34790231,0.00052029,2]
[358333230,1744942240663,-429.71636973,0.0012,120]
[358333231,1744942240684,-342.60646686,0.0012,120]
[358333232,1744942240698,-1375.4138,0.0012,120]
[358333233,1744942240709,-47786.97869324,0.0012,120]
[358333242,1744942243675,-1495.013329,0.0012,120]
[358333243,1744942243686,-38573.18358304,0.0012,120]
[358333244,1744942243732,-763.142274,0.0012,120]
[358333249,1744942246118,-379.12940536,0.0012,120]
[358333278,1744943108689,-156.74338609,0.0002,2]
[358333279,1744943113613,250.0,0.00017,2]
[358333280,1744943114678,300.0,0.00019,2]
[358333281,1744943115236,-156.74338609,0.0002,2]
[358333282,1744943131379,-189.27754714,0.000199,2]
[358333283,1744943144103,-448.41601779,0.000199,2]
[358333284,1744943144867,-215.56610093,0.000199,2]
[358333285,1744943149024,-3583.34172591,0.000199,2]
[358333286,1744943149051,-196416.65827409,0.0002,2]
[358333287,1744943152239,-200000.0,0.0002,2]
[358333288,1744943152312,-295.87968766,0.0002,2]
[358333289,1744943154914,-200000.0,0.0002,2]
[358333290,1744943156963,-200000.0,0.0002,2]
[358333291,1744943159025,-295.87968766,0.0002,2]
[358333292,1744943159852,-200000.0,0.0002,2]
[358333293,1744943163345,-300.0,0.00019999,2]
[358333294,1744943163376,-199700.0,0.0002,2]
[358333295,1744943167206,-377.70881815,0.0002,2]
[358333296,1744943223380,-377.70881815,0.00024,5]
[358333297,1744943228298,-300.0,0.00019999,2]
[358333298,1744943228321,-300.0,0.00019999,2]
[358333299,1744943228343,-6.95375608,0.00019999,2]
[358333300,1744943229152,-250.0,0.00019999,2]
[358333301,1744943231079,-291.94649777,0.000199,2]
[358333302,1744943235030,-250.0,0.000199,2]
[358333303,1744943245130,-1913.93384409,0.000199,2]
[358333304,1744943245151,-2455.88034185,0.000199,2]
[358333305,1744943245173,-593.04624392,0.00019999,2]
[358333306,1744943245444,-2999.23870306,0.0002,2]
[358333307,1744943246332,-213.39007215,0.0002,2]
[358333308,1744943249134,-1944.67100095,0.0002,2]
[358333309,1744943249891,-360.64341735,0.0002,2]
[358333310,1744943251097,-430.70658131,0.0002,2]
[358333311,1744943252100,-853.68899636,0.0002,2]
[358333312,1744943273129,-281.58707796,0.000199,2]
[358333313,1744943293909,-79.05634004,0.000199,2]
[358333314,1744943293942,-3149.81658505,0.0002,2]
[358333317,1744943293982,-3228.87292509,0.0002,2]
[358333319,1744943294032,-3228.87292509,0.0002,2]
[358333321,1744943294067,-3228.87292509,0.0002,2]
[358333322,1744943294116,-3228.87292509,0.0002,2]
[358333325,1744943335658,-33265.88496805,0.0002,2]
[358333326,1744943355091,-283.61470807,0.00021881,2]
[358333332,1744943432149,-250.0,0.0002189,2]
[358333334,1744943432159,-239.38511936,0.00022,2]
[358333336,1744943432257,-10.61488064,0.00022,2]
[358333337,1744943432267,-152.29788746,0.00025,7]
[358333338,1744943432277,-150.43436284,0.00027,2]
[358333339,1744943432286,-1470.5943699,0.00031,60]
[358333340,1744943432296,-632.6225661,0.0004,30]
[358333341,1744943432306,-232.0,0.00043109,5]
[358333342,1744943432315,-3550.14504861,0.0004311,15]
[358333343,1744943432327,-2361.72927958,0.0004311,15]
[358333344,1744943432339,-1368.93615679,0.0004311,15]
[358333345,1744943432354,-1182.76294852,0.0004311,15]
[358333346,1744943432364,-2294.74414268,0.0004321,2]
[358333347,1744943432374,-27385.67,0.0004321,30]
[358333348,1744943432384,-150.99,0.0004321,2]
[358333349,1744943432395,-216.40839507,0.00043987,120]
[358333350,1744943432410,-498.0,0.00045,30]
[358333351,1744943432420,-1137.94156356,0.00047,5]